Workbook

Sheet Summary Sheet
A1: Project | E1: [Project Name] | S1: Feasibility Cost Estimate (FCE)
A2: Phase | E2: [Project Phase]
A3: Client | E3: [Client] | S3: Proj. Mngr. | W3: [Project Mngr.] | AB3: Date | AF3: 2016-01-01
A4: Client's Repres. | E4: [Client's Representative]
A5: Contractor | E5: [Contractor] | S5: FCE No.
A6: Sub-Contractor | E6: [Sub-Contractor]
A7: 1 | C7: Consultancy | V7: QTY | AA7: Rate | AF7: Line Total
B8: A) | C8: Architect | V8: 10.00 | AA8: 1,000.00 | AF8: =V8*AA8 -> 10,000.00
B9: B) | C9: Civil/Structural Engineer | V9: 20.00 | AA9: 2,000.00 | AF9: =V9*AA9 -> 40,000.00
B10: C) | C10: Cost Control | V10: 30.00 | AA10: 3,000.00 | AF10: 90,000.00
B11: D) | C11: Planning Engineer | V11: 40.00 | AA11: 4,000.00 | AF11: 160,000.00
B12: E) | C12: Health and Safety | V12: 50.00 | AA12: 5,000.00 | AF12: 250,000.00
B13: F) | C13: Site Supervision | V13: 60.00 | AA13: 6,000.00 | AF13: 360,000.00
B14: G) | C14: Project Management | V14: 70.00 | AA14: 7,000.00 | AF14: 490,000.00
B15: H) | C15: Other | V15: 80.00 | AA15: 8,000.00 | AF15: 640,000.00
A16: Sub-Total Construction Cost | AA16: =SUBTOTAL(109,AF8:AJ15) -> 2,040,000.00
A17: 2 | C17: Survey, Planning, Permits | V17: QTY | AA17: Rate | AF17: Line Total
B18: A) | C18: Site Investigation | V18: 10.00 | AA18: 1,000.00 | AF18: =V18*AA18 -> 10,000.00
B19: B) | C19: Topographical Survey | V19: 20.00 | AA19: 2,000.00 | AF19: =V19*AA19 -> 40,000.00
B20: C) | C20: Environmental Survey | V20: 30.00 | AA20: 3,000.00 | AF20: 90,000.00
B21: D) | C21: Planning & Warrant Fees | V21: 40.00 | AA21: 4,000.00 | AF21: 160,000.00
B22: E) | C22: Building Permits | V22: 50.00 | AA22: 5,000.00 | AF22: 250,000.00
B23: F) | C23: Other | V23: 60.00 | AA23: 6,000.00 | AF23: 360,000.00
A24: Sub-Total Construction Cost | AA24: =SUBTOTAL(109,AF18:AJ23) -> 910,000.00
A25: 3 | C25: Construction Cost | V25: QTY | AA25: Rate | AF25: Line Total
B26: A) | C26: Preliminaries | AF26: =V26*AA26 -> 0
B27: B) | C27: Enabling | AF27: =V27*AA27 -> 0
C28: 1 | D28: Preliminaries | AF28: 0
C29: 2 | D29: Demolition | AF29: 0
C30: 3 | D30: Site Clearing | AF30: 0
C31: 4 | D31: Landscaping/Levelling | AF31: 0
C32: 5 | D32: Site Fencing | AF32: 0
C33: 6 | D33: Site Facilities | AF33: 0
C34: 7 | D34: De-Watering | AF34: 0
C35: 8 | D35: Others | AF35: 0
B36: C) | C36: Infrastructure | AF36: 0
C37: 1 | D37: Energy | AF37: 0
C38: 2 | D38: Water | AF38: 0
C39: 3 | D39: Waste Water | AF39: 0
C40: 4 | D40: Site Levelling | AF40: 0
C41: 5 | D41: Communication | AF41: 0
C42: 6 | D42: Others | AF42: 0
B43: D) | C43: Construction Works | AF43: 0
C44: 1 | D44: Foundation (incl. Piling etc.) | AF44: 0
C45: 2 | D45: Sub-structure | AF45: 0
C46: 3 | D46: Super-structure | AF46: 0
C47: 4 | D47: MEP | AF47: 0
C48: 5 | D48: HVAC | AF48: 0
C49: 6 | D49: Others | AF49: 0
B50: E) | C50: Ancillary Buildings | AF50: 0
C51: 1 | D51: Plant rooms | AF51: 0
C52: 2 | D52: Security | AF52: 0
C53: 3 | D53: Parking | AF53: 0
C54: 4 | D54: Others | AF54: 0
A55: Sub-Total Construction Cost | AA55: =SUBTOTAL(109,AF26:AJ54) -> 0
A56: 4 | C56: Configuration Cost | V56: QTY | AA56: Rate | AF56: Line Total
B57: A) | D57: Fixtures | AF57: =V57*AA57 -> 0
B58: B) | D58: Fittings | AF58: 0
B59: C) | D59: Furnishings | AF59: 0
B60: D) | D60: Others | AF60: 0
A61: Sub-Total Configuration Cost | AA61: =SUBTOTAL(109,AF56:AJ60) -> 0
A62: 5 | C62: Running Cost | V62: QTY | AA62: Rate | AF62: Line Total
B63: A) | D63: Operation | AF63: =V63*AA63 -> 0
B64: B) | D64: Maintenance | AF64: 0
B65: C) | D65: Others | AF65: =V65*AA65 -> 0
A66: Sub-Total Running Cost | AA66: =SUBTOTAL(109,AF62:AJ65) -> 0
A68: Sub-Total 1 - 6 | AA68: =SUBTOTAL(109,AF8:AJ67) -> 2,950,000.00
A71: 6 | C71: Others | V71: QTY | AA71: Rate | AF71: Line Total
B72: A) | D72: Contingencies | V72: 10.0% | AF72: =AA68*V72 -> 295,000.00
B73: B) | D73: Inflation Cost | L73: Estim. Infl. Rate | Q73: 1.5% | V73: Period (years) | AA73: 3 | AF73: =FV(Q73,AA73,0,-AA68)-AA68 -> 134,751.21
B74: C) | D74: Others | AF74: =V74*AA74 -> 0
A75: Sub-Total Other Cost | AA75: =SUBTOTAL(109,AF72:AJ74) -> 429,751.21
A78: Total Cost Estimate | AA78: =AA68+AA75 -> 3,379,751.21
A79: Exclusive of site acquisition, taxes, life cycle cost and legal fees.
A81: Estimation Classes
A83: Order of Magnitude Est. | Y83: -25% | AA83: =AA78*(1+Y83) -> 2,534,813.40
Y84: 75% | AA84: =AA78*(1+Y84) -> 5,914,564.61
A86: Preliminary Estimate | Y86: -15% | AA86: =AA78*(1+Y86) -> 2,872,788.53
Y87: 50% | AA87: =AA78*(1+Y87) -> 5,069,626.81
A89: Budget Estimate | Y89: -10% | AA89: =AA78*(1+Y89) -> 3,041,776.09
Y90: 25% | AA90: =AA78*(1+Y90) -> 4,224,689.01
A92: Definitive Estimate | Y92: -5% | AA92: =AA78*(1+Y92) -> 3,210,763.65
Y93: 10% | AA93: =AA78*(1+Y93) -> 3,717,726.33
